[Event "Live Chess"]
[Site "Chess.com"]
[Date "2023.05.21"]
[Round "-"]
[White "SavagePawn7"]
[Black "mattihelenius2"]
[Result "1/2-1/2"]
[WhiteElo "777"]
[BlackElo "495"]
[TimeControl "300"]
[EndTime "7:15:23 PDT"]
[Termination "Game drawn by stalemate"]

1. e4 {[%clk 0:04:50.2]} 1... e6 {[%clk 0:04:59.2]} 2. d4 {[%clk 0:04:47.8]}
2... d6 {[%clk 0:04:57.9]} 3. Nc3 {[%clk 0:04:43.5]} 3... d5 {[%clk 0:04:55]} 4.
exd5 {[%clk 0:04:42]} 4... exd5 {[%clk 0:04:52.8]} 5. Nf3 {[%clk 0:04:40.5]}
5... Qe7+ {[%clk 0:04:51.4]} 6. Qe2 {[%clk 0:04:37.3]} 6... Nf6 {[%clk 0:04:51]}
7. Qxe7+ {[%clk 0:04:34.2]} 7... Bxe7 {[%clk 0:04:49.8]} 8. Be2 {[%clk
0:04:32.6]} 8... Bg4 {[%clk 0:04:48]} 9. O-O {[%clk 0:04:30.4]} 9... c6 {[%clk
0:04:45.9]} 10. h3 {[%clk 0:04:28.7]} 10... Bxf3 {[%clk 0:04:43.3]} 11. Bxf3
{[%clk 0:04:27.7]} 11... Nbd7 {[%clk 0:04:37.7]} 12. Bg5 {[%clk 0:04:21.8]}
12... h6 {[%clk 0:04:34.7]} 13. Bxf6 {[%clk 0:04:19.9]} 13... Bxf6 {[%clk
0:04:34.6]} 14. Rfe1+ {[%clk 0:04:18.4]} 14... Kd8 {[%clk 0:04:32.4]} 15. Bg4
{[%clk 0:04:10.8]} 15... Bxd4 {[%clk 0:04:12.2]} 16. Rad1 {[%clk 0:03:44]} 16...
Be5 {[%clk 0:04:05.4]} 17. Bxd7 {[%clk 0:03:38.9]} 17... f6 {[%clk 0:03:59.3]}
18. Bg4 {[%clk 0:03:36.1]} 18... Re8 {[%clk 0:03:56.8]} 19. g3 {[%clk
0:03:23.5]} 19... g6 {[%clk 0:03:48]} 20. Ne2 {[%clk 0:03:11.1]} 20... h5 {[%clk
0:03:44.8]} 21. Bf3 {[%clk 0:03:04]} 21... f5 {[%clk 0:03:24.8]} 22. g4 {[%clk
0:02:59.2]} 22... hxg4 {[%clk 0:03:16.2]} 23. hxg4 {[%clk 0:02:58.1]} 23... fxg4
{[%clk 0:02:49.2]} 24. Bxg4 {[%clk 0:02:55.1]} 24... Kc7 {[%clk 0:02:30.6]} 25.
Nd4 {[%clk 0:02:52.8]} 25... Rad8 {[%clk 0:02:21.5]} 26. Nf3 {[%clk 0:02:40.8]}
26... Kd6 {[%clk 0:01:36.2]} 27. Nxe5 {[%clk 0:02:38.6]} 27... Rxe5 {[%clk
0:01:33.7]} 28. Rxe5 {[%clk 0:02:36.9]} 28... Kxe5 {[%clk 0:01:32.6]} 29. Re1+
{[%clk 0:02:34.7]} 29... Kd6 {[%clk 0:01:31.7]} 30. Re6+ {[%clk 0:02:29.9]}
30... Kc7 {[%clk 0:01:30]} 31. Rxg6 {[%clk 0:02:28.1]} 31... Re8 {[%clk
0:01:27.9]} 32. Rg7+ {[%clk 0:02:23.4]} 32... Kd6 {[%clk 0:01:25.2]} 33. Rxb7
{[%clk 0:02:11.9]} 33... Re1+ {[%clk 0:01:22.4]} 34. Kg2 {[%clk 0:02:10.2]}
34... Re7 {[%clk 0:01:12.1]} 35. Rxe7 {[%clk 0:02:07.2]} 35... Kxe7 {[%clk
0:01:11.3]} 36. Kg3 {[%clk 0:02:03]} 36... Kd6 {[%clk 0:01:10.2]} 37. f4 {[%clk
0:02:00.5]} 37... a5 {[%clk 0:01:09.2]} 38. f5 {[%clk 0:01:58.7]} 38... Ke5
{[%clk 0:01:08.4]} 39. Kh4 {[%clk 0:01:56.4]} 39... Kf6 {[%clk 0:01:07.4]} 40.
c3 {[%clk 0:01:54.3]} 40... c5 {[%clk 0:01:06.1]} 41. Kg3 {[%clk 0:01:51.5]}
41... Kg5 {[%clk 0:01:04.2]} 42. b3 {[%clk 0:01:48.4]} 42... Kf6 {[%clk
0:01:00.6]} 43. Kf4 {[%clk 0:01:44.5]} 43... c4 {[%clk 0:00:50.5]} 44. bxc4
{[%clk 0:01:42.6]} 44... dxc4 {[%clk 0:00:49.2]} 45. a4 {[%clk 0:01:40.3]} 45...
Kf7 {[%clk 0:00:45.5]} 46. Ke5 {[%clk 0:01:35.2]} 46... Ke7 {[%clk 0:00:44.1]}
47. f6+ {[%clk 0:01:33.6]} 47... Kf7 {[%clk 0:00:43]} 48. Be6+ {[%clk
0:01:30.9]} 48... Kg6 {[%clk 0:00:41.7]} 49. f7 {[%clk 0:01:29.9]} 49... Kg7
{[%clk 0:00:40.4]} 50. Kf5 {[%clk 0:01:26.6]} 50... Kf8 {[%clk 0:00:39.1]} 51.
Kf6 {[%clk 0:01:25.1]} 1/2-1/2

[Event "Live Chess"]
[Site "Chess.com"]
[Date "2023.05.21"]
[Round "-"]
[White "ms_lilley"]
[Black "Olisingapore"]
[Result "0-1"]
[WhiteElo "604"]
[BlackElo "1792"]
[TimeControl "300"]
[EndTime "7:15:34 PDT"]
[Termination "Olisingapore won by checkmate"]

1. d4 {[%clk 0:04:57.4]} 1... Nf6 {[%clk 0:04:59]} 2. h3 {[%clk 0:04:55.8]} 2...
d5 {[%clk 0:04:58.5]} 3. e3 {[%clk 0:04:54.1]} 3... c5 {[%clk 0:04:57.9]} 4. Nf3
{[%clk 0:04:51.9]} 4... Nc6 {[%clk 0:04:57.4]} 5. c3 {[%clk 0:04:49.7]} 5... e6
{[%clk 0:04:56.7]} 6. a3 {[%clk 0:04:46.4]} 6... Be7 {[%clk 0:04:53.7]} 7. b4
{[%clk 0:04:40.3]} 7... cxb4 {[%clk 0:04:47.4]} 8. axb4 {[%clk 0:04:38.6]} 8...
O-O {[%clk 0:04:22]} 9. Bd3 {[%clk 0:04:32.4]} 9... a6 {[%clk 0:04:15.2]} 10.
O-O {[%clk 0:04:29.2]} 10... Qc7 {[%clk 0:04:10.5]} 11. Ba3 {[%clk 0:04:15]}
11... b5 {[%clk 0:04:05.8]} 12. Qb3 {[%clk 0:04:02.6]} 12... e5 {[%clk
0:04:01.1]} 13. c4 {[%clk 0:04:00.5]} 13... bxc4 {[%clk 0:03:49.6]} 14. Bxc4
{[%clk 0:03:47.7]} 14... dxc4 {[%clk 0:03:46.7]} 15. Qxc4 {[%clk 0:03:45.7]}
15... Be6 {[%clk 0:03:44.8]} 16. d5 {[%clk 0:03:41.8]} 16... Bxd5 {[%clk
0:03:43.2]} 17. Qd3 {[%clk 0:03:24.5]} 17... e4 {[%clk 0:03:41.2]} 18. Qc3
{[%clk 0:03:07.9]} 18... exf3 {[%clk 0:03:37.8]} 19. g4 {[%clk 0:03:03.4]} 19...
Nxg4 {[%clk 0:03:33.4]} 20. hxg4 {[%clk 0:02:55.7]} 20... Qd7 {[%clk 0:03:28.6]}
21. Nd2 {[%clk 0:02:06.8]} 21... Qxg4+ {[%clk 0:03:26.3]} 22. Kh1 {[%clk
0:01:59.6]} 22... Qg2# {[%clk 0:03:25.8]} 0-1

[Event "Live Chess"]
[Site "Chess.com"]
[Date "2023.05.21"]
[Round "-"]
[White "manthanit"]
[Black "matt1979"]
[Result "1-0"]
[WhiteElo "1096"]
[BlackElo "1537"]
[TimeControl "300"]
[EndTime "7:15:38 PDT"]
[Termination "manthanit won by resignation"]

1. e4 {[%clk 0:04:57.4]} 1... d6 {[%clk 0:04:56.7]} 2. Nf3 {[%clk 0:04:53.2]}
2... Nf6 {[%clk 0:04:54.6]} 3. e5 {[%clk 0:04:47.1]} 3... dxe5 {[%clk
0:04:50.5]} 4. Nxe5 {[%clk 0:04:46.3]} 4... Qd5 {[%clk 0:04:42.6]} 5. d4 {[%clk
0:04:29.8]} 5... Nbd7 {[%clk 0:04:39.2]} 6. Bc4 {[%clk 0:04:17.1]} 6... Qe4+
{[%clk 0:04:34]} 7. Be3 {[%clk 0:04:15.2]} 7... Nxe5 {[%clk 0:04:31.1]} 8. dxe5
{[%clk 0:04:13.7]} 8... Nd7 {[%clk 0:04:21.6]} 9. Bd3 {[%clk 0:04:10.6]} 9...
Qb4+ {[%clk 0:04:15.3]} 10. Nc3 {[%clk 0:03:52.3]} 10... Qa5 {[%clk 0:03:57.1]}
11. O-O {[%clk 0:03:49.7]} 11... Qxe5 {[%clk 0:03:46.6]} 12. Re1 {[%clk
0:03:46]} 12... Qf6 {[%clk 0:03:43.2]} 13. h3 {[%clk 0:03:45.8]} 13... g6 {[%clk
0:03:36.9]} 14. Nd5 {[%clk 0:03:39.2]} 14... Qc6 {[%clk 0:03:30.6]} 15. Be4
{[%clk 0:03:29.5]} 15... Qd6 {[%clk 0:03:26.1]} 16. Bf4 {[%clk 0:03:23]} 16...
Ne5 {[%clk 0:03:20.6]} 17. Bf3 {[%clk 0:02:44]} 17... Nxf3+ {[%clk 0:03:16.4]}
18. Qxf3 {[%clk 0:02:40.5]} 18... Qc6 {[%clk 0:03:02.4]} 19. Nxc7+ {[%clk
0:02:37.1]} 19... Kd8 {[%clk 0:03:01.2]} 20. Nxa8 {[%clk 0:02:35]} 20... Bg7
{[%clk 0:02:56.6]} 21. Rad1+ {[%clk 0:02:33.3]} 21... Bd7 {[%clk 0:02:52.8]} 22.
Qxc6 {[%clk 0:02:27.6]} 22... bxc6 {[%clk 0:02:49.3]} 23. c3 {[%clk 0:02:26.6]}
23... Kc8 {[%clk 0:02:39.7]} 24. Nc7 {[%clk 0:02:23.4]} 24... e5 {[%clk
0:02:32.1]} 25. Bxe5 {[%clk 0:02:02.7]} 25... Bxe5 {[%clk 0:02:29.7]} 26. Rxe5
{[%clk 0:02:01.6]} 26... Kxc7 {[%clk 0:02:29]} 27. Re7 {[%clk 0:02:00.6]} 27...
Rd8 {[%clk 0:02:26.4]} 28. Rxf7 {[%clk 0:01:57.8]} 28... Kc8 {[%clk 0:02:23.1]}
29. Rxh7 {[%clk 0:01:47.5]} 29... Re8 {[%clk 0:02:13.9]} 30. Rdxd7 {[%clk
0:01:43.3]} 1-0

[Event "Live Chess"]
[Site "Chess.com"]
[Date "2023.05.21"]
[Round "-"]
[White "PantherCal"]
[Black "AMCWAML"]
[Result "1-0"]
[WhiteElo "1845"]
[BlackElo "2254"]
[TimeControl "300"]
[EndTime "7:15:43 PDT"]
[Termination "PantherCal won by checkmate"]

1. e4 {[%clk 0:04:59.6]} 1... c5 {[%clk 0:04:59]} 2. c3 {[%clk 0:04:58]} 2...
Nf6 {[%clk 0:04:57.7]} 3. e5 {[%clk 0:04:57.3]} 3... Nd5 {[%clk 0:04:57.3]} 4.
d4 {[%clk 0:04:57.2]} 4... cxd4 {[%clk 0:04:57.1]} 5. cxd4 {[%clk 0:04:56.6]}
5... d6 {[%clk 0:04:56.8]} 6. exd6 {[%clk 0:04:56.5]} 6... Qxd6 {[%clk
0:04:55.8]} 7. Nf3 {[%clk 0:04:56.4]} 7... Nc6 {[%clk 0:04:55.3]} 8. Nc3 {[%clk
0:04:55.5]} 8... Bg4 {[%clk 0:04:54.7]} 9. Be2 {[%clk 0:04:54.5]} 9... e6 {[%clk
0:04:53.3]} 10. O-O {[%clk 0:04:53.6]} 10... Be7 {[%clk 0:04:52.4]} 11. h3
{[%clk 0:04:49.7]} 11... Bh5 {[%clk 0:04:50.8]} 12. Be3 {[%clk 0:04:47.1]} 12...
O-O {[%clk 0:04:49.5]} 13. a3 {[%clk 0:04:43.3]} 13... Rac8 {[%clk 0:04:42.4]}
14. Rc1 {[%clk 0:04:42.4]} 14... Rfd8 {[%clk 0:04:40.8]} 15. Qd2 {[%clk
0:04:41.5]} 15... Nxe3 {[%clk 0:04:38.4]} 16. fxe3 {[%clk 0:04:40.8]} 16... e5
{[%clk 0:04:28.1]} 17. Rfd1 {[%clk 0:04:33.5]} 17... exd4 {[%clk 0:04:24.8]} 18.
Nxd4 {[%clk 0:04:28.6]} 18... Nxd4 {[%clk 0:04:16.2]} 19. exd4 {[%clk
0:04:20.5]} 19... Bxe2 {[%clk 0:04:05.7]} 20. Qxe2 {[%clk 0:04:18.3]} 20... Bf6
{[%clk 0:04:01.4]} 21. d5 {[%clk 0:03:39.5]} 21... Bxc3 {[%clk 0:03:53.2]} 22.
Rxc3 {[%clk 0:03:34.7]} 22... Rxc3 {[%clk 0:03:51.3]} 23. bxc3 {[%clk
0:03:34.6]} 23... Qc5+ {[%clk 0:03:44.9]} 24. Kh1 {[%clk 0:03:24.1]} 24... Qxc3
{[%clk 0:03:44.1]} 25. Qe7 {[%clk 0:03:15]} 25... Qa5 {[%clk 0:03:35.7]} 26. d6
{[%clk 0:03:03.8]} 26... g6 {[%clk 0:03:17.3]} 27. Rf1 {[%clk 0:02:57.5]} 27...
Rf8 {[%clk 0:03:14.2]} 28. d7 {[%clk 0:02:55.1]} 28... Qd8 {[%clk 0:03:10.5]}
29. Re1 {[%clk 0:02:16]} 29... Kg7 {[%clk 0:02:52.6]} 30. Qd6 {[%clk 0:01:20.2]}
30... b5 {[%clk 0:02:25.3]} 31. Re7 {[%clk 0:01:17.4]} 31... a5 {[%clk
0:02:10.2]} 32. Kh2 {[%clk 0:01:16.1]} 32... b4 {[%clk 0:02:00.1]} 33. axb4
{[%clk 0:01:16]} 33... a4 {[%clk 0:01:59.5]} 34. b5 {[%clk 0:01:11.2]} 34... a3
{[%clk 0:01:44.2]} 35. Qxa3 {[%clk 0:01:09.8]} 35... Qb8+ {[%clk 0:01:43.1]} 36.
Qg3 {[%clk 0:01:05.1]} 36... Qxb5 {[%clk 0:01:39.2]} 37. Qc3+ {[%clk 0:00:51.8]}
37... Kh6 {[%clk 0:01:26.2]} 38. Qd2+ {[%clk 0:00:48.6]} 38... g5 {[%clk
0:01:14.6]} 39. d8=Q {[%clk 0:00:45.5]} 39... Rxd8 {[%clk 0:01:03]} 40. Qxd8
{[%clk 0:00:45.4]} 40... Qf5 {[%clk 0:01:00.3]} 41. Qf8+ {[%clk 0:00:37.5]}
41... Kg6 {[%clk 0:00:58.8]} 42. Qg8+ {[%clk 0:00:31.9]} 42... Kh6 {[%clk
0:00:56.8]} 43. Qxf7 {[%clk 0:00:12.4]} 43... Qg6 {[%clk 0:00:53.2]} 44. Qxg6+
{[%clk 0:00:11.2]} 44... hxg6 {[%clk 0:00:53.1]} 45. Re3 {[%clk 0:00:09.1]}
45... Kh5 {[%clk 0:00:53]} 46. Ra3 {[%clk 0:00:08.4]} 46... Kh6 {[%clk
0:00:52.9]} 47. g4 {[%clk 0:00:07.9]} 47... Kh7 {[%clk 0:00:52]} 48. Kg3 {[%clk
0:00:07.8]} 48... Kh6 {[%clk 0:00:51.9]} 49. Kf3 {[%clk 0:00:07.7]} 49... Kh7
{[%clk 0:00:51.5]} 50. Ke4 {[%clk 0:00:07.6]} 50... Kh6 {[%clk 0:00:51.4]} 51.
Ke5 {[%clk 0:00:07.5]} 51... Kh7 {[%clk 0:00:51.3]} 52. Kf6 {[%clk 0:00:07.4]}
52... Kh6 {[%clk 0:00:51.2]} 53. Ra6 {[%clk 0:00:05.8]} 53... Kh7 {[%clk
0:00:50.3]} 54. Kxg5 {[%clk 0:00:05.7]} 54... Kg7 {[%clk 0:00:49.5]} 55. Rxg6+
{[%clk 0:00:04.8]} 55... Kh7 {[%clk 0:00:49.4]} 56. Ra6 {[%clk 0:00:04.4]} 56...
Kh8 {[%clk 0:00:49.2]} 57. Ra7 {[%clk 0:00:03.2]} 57... Kg8 {[%clk 0:00:48.5]}
58. Kf6 {[%clk 0:00:03]} 58... Kf8 {[%clk 0:00:48.4]} 59. Ra8# {[%clk
0:00:02.3]} 1-0

[Event "Live Chess"]
[Site "Chess.com"]
[Date "2023.05.21"]
[Round "-"]
[White "Larchikov"]
[Black "elephantgerrald"]
[Result "1-0"]
[WhiteElo "2068"]
[BlackElo "662"]
[TimeControl "300"]
[EndTime "7:16:02 PDT"]
[Termination "Larchikov won by checkmate"]

1. Nf3 {[%clk 0:04:58.4]} 1... d5 {[%clk 0:04:58.3]} 2. d4 {[%clk 0:04:56.9]}
2... Nc6 {[%clk 0:04:54.2]} 3. c4 {[%clk 0:04:55.3]} 3... dxc4 {[%clk
0:04:52.6]} 4. Nc3 {[%clk 0:04:54.1]} 4... e5 {[%clk 0:04:51.1]} 5. d5 {[%clk
0:04:50.5]} 5... Nb4 {[%clk 0:04:45.8]} 6. e4 {[%clk 0:04:48.2]} 6... c6 {[%clk
0:04:40.5]} 7. Bxc4 {[%clk 0:04:41.5]} 7... cxd5 {[%clk 0:04:38.5]} 8. Nxd5
{[%clk 0:04:40.5]} 8... Nxd5 {[%clk 0:04:36.5]} 9. Bxd5 {[%clk 0:04:40.4]} 9...
Qa5+ {[%clk 0:04:34.4]} 10. Bd2 {[%clk 0:04:39]} 10... Qb5 {[%clk 0:04:29.8]}
11. Nxe5 {[%clk 0:04:36.9]} 11... Qxb2 {[%clk 0:04:26.1]} 12. Nxf7 {[%clk
0:04:34.1]} 12... Qd4 {[%clk 0:04:17.5]} 13. Nxh8 {[%clk 0:04:31.4]} 13... Nf6
{[%clk 0:04:14.4]} 14. O-O {[%clk 0:04:28.8]} 14... Qe5 {[%clk 0:03:58.5]} 15.
Nf7 {[%clk 0:04:25.4]} 15... Qc7 {[%clk 0:03:52.3]} 16. Ng5 {[%clk 0:04:20.2]}
16... Qe5 {[%clk 0:03:49.8]} 17. Nf3 {[%clk 0:04:17.9]} 17... Qd6 {[%clk
0:03:39.2]} 18. e5 {[%clk 0:04:11.5]} 18... Qxd5 {[%clk 0:03:25.8]} 19. exf6
{[%clk 0:04:11.4]} 19... gxf6 {[%clk 0:03:23.6]} 20. Re1+ {[%clk 0:04:07.3]}
20... Be7 {[%clk 0:03:21.8]} 21. Bb4 {[%clk 0:04:03.2]} 21... Bg4 {[%clk
0:03:14]} 22. Rxe7+ {[%clk 0:04:00.2]} 22... Kf8 {[%clk 0:03:09.2]} 23. Qxd5
{[%clk 0:03:58.4]} 23... Bxf3 {[%clk 0:03:07.3]} 24. Qf7# {[%clk 0:03:56.7]} 1-0

[Event "Live Chess"]
[Site "Chess.com"]
[Date "2023.05.21"]
[Round "-"]
[White "GMHarry-youtube"]
[Black "Biranidun"]
[Result "1/2-1/2"]
[WhiteElo "2057"]
[BlackElo "2518"]
[TimeControl "300"]
[EndTime "7:16:04 PDT"]
[Termination "Game drawn by stalemate"]

1. e4 {[%clk 0:04:58.6]} 1... c5 {[%clk 0:04:57.5]} 2. Nf3 {[%clk 0:04:57.7]}
2... Nf6 {[%clk 0:04:55.4]} 3. Nc3 {[%clk 0:04:47.6]} 3... d6 {[%clk 0:04:54.5]}
4. Bb5+ {[%clk 0:04:42.7]} 4... Nbd7 {[%clk 0:04:53.3]} 5. a4 {[%clk 0:04:41]}
5... a6 {[%clk 0:04:52.4]} 6. Be2 {[%clk 0:04:40.4]} 6... b6 {[%clk 0:04:49.8]}
7. d4 {[%clk 0:04:39.4]} 7... cxd4 {[%clk 0:04:49.6]} 8. Nxd4 {[%clk 0:04:38.6]}
8... Bb7 {[%clk 0:04:48.4]} 9. f3 {[%clk 0:04:37]} 9... e6 {[%clk 0:04:47.5]}
10. Be3 {[%clk 0:04:34.9]} 10... Be7 {[%clk 0:04:47]} 11. O-O {[%clk 0:04:32.5]}
11... O-O {[%clk 0:04:46.5]} 12. Qd2 {[%clk 0:04:31]} 12... Qc7 {[%clk
0:04:45.3]} 13. Nd1 {[%clk 0:04:17.3]} 13... d5 {[%clk 0:04:42.3]} 14. Nf2
{[%clk 0:04:11.6]} 14... dxe4 {[%clk 0:04:39.5]} 15. fxe4 {[%clk 0:04:11.5]}
15... Nxe4 {[%clk 0:04:32.9]} 16. Nxe4 {[%clk 0:04:10.1]} 16... Bxe4 {[%clk
0:04:32.8]} 17. c3 {[%clk 0:04:04.6]} 17... Qb7 {[%clk 0:04:28.9]} 18. Bf3
{[%clk 0:04:01.2]} 18... Bxf3 {[%clk 0:04:27.3]} 19. Rxf3 {[%clk 0:04:00.3]}
19... Ne5 {[%clk 0:04:25.9]} 20. Rh3 {[%clk 0:03:58.4]} 20... Qe4 {[%clk
0:04:05.6]} 21. Re1 {[%clk 0:03:55.6]} 21... Rfd8 {[%clk 0:03:53]} 22. Bf4
{[%clk 0:03:51.7]} 22... Nc4 {[%clk 0:02:48.7]} 23. Rxe4 {[%clk 0:03:42.3]}
23... Nxd2 {[%clk 0:02:47.7]} 24. Bxd2 {[%clk 0:03:42.2]} 24... Bf6 {[%clk
0:02:42.6]} 25. Be3 {[%clk 0:03:37.8]} 25... Rd5 {[%clk 0:02:37.2]} 26. Kf2
{[%clk 0:03:15]} 26... b5 {[%clk 0:02:35.3]} 27. a5 {[%clk 0:03:11.2]} 27... Rc8
{[%clk 0:02:33.4]} 28. Nb3 {[%clk 0:03:02.3]} 28... Rd1 {[%clk 0:02:11.5]} 29.
Bd4 {[%clk 0:02:45.7]} 29... Rb1 {[%clk 0:02:07.1]} 30. Re2 {[%clk 0:02:39.7]}
30... Be7 {[%clk 0:02:05.3]} 31. Rd3 {[%clk 0:02:28.4]} 31... Rd8 {[%clk
0:01:59.3]} 32. Red2 {[%clk 0:02:24.2]} 32... e5 {[%clk 0:01:30.8]} 33. Bxe5
{[%clk 0:02:15]} 33... Rxd3 {[%clk 0:01:30.7]} 34. Rxd3 {[%clk 0:02:14.4]} 34...
Rxb2+ {[%clk 0:01:30.3]} 35. Nd2 {[%clk 0:02:13.9]} 35... f6 {[%clk 0:01:12.3]}
36. Bf4 {[%clk 0:02:08.4]} 36... Ra2 {[%clk 0:01:07]} 37. Bc7 {[%clk 0:02:03.8]}
37... Kf7 {[%clk 0:01:03.9]} 38. Ke2 {[%clk 0:01:58]} 38... Ke6 {[%clk
0:01:02.6]} 39. Bb6 {[%clk 0:01:52.6]} 39... Bd6 {[%clk 0:01:00.2]} 40. h3
{[%clk 0:01:50.5]} 40... Bf4 {[%clk 0:00:55.1]} 41. Kd1 {[%clk 0:01:27.2]} 41...
h5 {[%clk 0:00:52.2]} 42. g3 {[%clk 0:01:19.5]} 42... Be5 {[%clk 0:00:49.2]} 43.
Nb3 {[%clk 0:01:15.5]} 43... Bd6 {[%clk 0:00:43.3]} 44. Nd4+ {[%clk 0:01:10.8]}
44... Ke5 {[%clk 0:00:35.1]} 45. Nc6+ {[%clk 0:01:08.5]} 45... Ke6 {[%clk
0:00:34.6]} 46. Nd4+ {[%clk 0:01:07.5]} 46... Ke5 {[%clk 0:00:33.8]} 47. Nc2
{[%clk 0:01:07.1]} 47... Ra4 {[%clk 0:00:28.6]} 48. Rd4 {[%clk 0:00:51.6]} 48...
Ra2 {[%clk 0:00:25.4]} 49. Rd2 {[%clk 0:00:43.7]} 49... Ra4 {[%clk 0:00:22.8]}
50. Ne3 {[%clk 0:00:38.6]} 50... Bf8 {[%clk 0:00:16.4]} 51. Kc2 {[%clk
0:00:30.3]} 51... Ke4 {[%clk 0:00:15.6]} 52. Rd4+ {[%clk 0:00:22.9]} 52... Rxd4
{[%clk 0:00:14.9]} 53. Bxd4 {[%clk 0:00:21.1]} 53... Kf3 {[%clk 0:00:14.5]} 54.
g4 {[%clk 0:00:18.5]} 54... h4 {[%clk 0:00:14]} 55. Nf5 {[%clk 0:00:17.5]} 55...
Kg2 {[%clk 0:00:12.3]} 56. Nxh4+ {[%clk 0:00:17.2]} 56... Kxh3 {[%clk
0:00:11.8]} 57. Ng6 {[%clk 0:00:17]} 57... Kxg4 {[%clk 0:00:11.7]} 58. Nxf8
{[%clk 0:00:16.2]} 58... f5 {[%clk 0:00:10.9]} 59. Ne6 {[%clk 0:00:15.6]} 59...
g5 {[%clk 0:00:10.4]} 60. Bf6 {[%clk 0:00:14]} 60... f4 {[%clk 0:00:10.3]} 61.
Nxg5 {[%clk 0:00:12.5]} 61... Kf5 {[%clk 0:00:10.2]} 62. Bd8 {[%clk 0:00:10.7]}
62... f3 {[%clk 0:00:09.4]} 63. Nxf3 {[%clk 0:00:10.2]} 63... Ke6 {[%clk
0:00:08.6]} 64. Nd4+ {[%clk 0:00:10.1]} 64... Kd5 {[%clk 0:00:08.5]} 65. Bb6
{[%clk 0:00:09.6]} 65... Kc4 {[%clk 0:00:08.4]} 66. Kb2 {[%clk 0:00:08.9]} 66...
Kd5 {[%clk 0:00:08.3]} 67. Kb3 {[%clk 0:00:08.8]} 67... Kd6 {[%clk 0:00:07.3]}
68. Kb4 {[%clk 0:00:08.7]} 68... Kd5 {[%clk 0:00:06.8]} 69. c4+ {[%clk
0:00:08.6]} 69... bxc4 {[%clk 0:00:06.3]} 70. Nc2 {[%clk 0:00:07.1]} 70... c3
{[%clk 0:00:06.2]} 71. Kxc3 {[%clk 0:00:06.2]} 71... Kc6 {[%clk 0:00:06.1]} 72.
Kb4 {[%clk 0:00:06.1]} 72... Kb7 {[%clk 0:00:05.9]} 73. Nd4 {[%clk 0:00:05.8]}
73... Kc8 {[%clk 0:00:05.3]} 74. Nc6 {[%clk 0:00:05.7]} 74... Kb7 {[%clk
0:00:05.2]} 75. Kc5 {[%clk 0:00:05.4]} 75... Kc8 {[%clk 0:00:05.1]} 76. Nb4
{[%clk 0:00:05.1]} 76... Kb7 {[%clk 0:00:05]} 77. Nxa6 {[%clk 0:00:05]} 77...
Kc8 {[%clk 0:00:04.9]} 78. Kc6 {[%clk 0:00:04.4]} 1/2-1/2

[Event "Live Chess"]
[Site "Chess.com"]
[Date "2023.05.21"]
[Round "-"]
[White "DRS44"]
[Black "JoRoSaR"]
[Result "0-1"]
[WhiteElo "1307"]
[BlackElo "1674"]
[TimeControl "300"]
[EndTime "7:16:16 PDT"]
[Termination "JoRoSaR won on time"]

1. e4 {[%clk 0:04:55]} 1... c5 {[%clk 0:04:59]} 2. a3 {[%clk 0:04:49.5]} 2...
Nc6 {[%clk 0:04:58.3]} 3. b4 {[%clk 0:04:42.4]} 3... cxb4 {[%clk 0:04:56.5]} 4.
Bb2 {[%clk 0:04:33]} 4... bxa3 {[%clk 0:04:55.3]} 5. Rxa3 {[%clk 0:04:27.4]}
5... e5 {[%clk 0:04:52.7]} 6. Rh3 {[%clk 0:04:17.9]} 6... d6 {[%clk 0:04:50]} 7.
Rg3 {[%clk 0:04:09.3]} 7... g6 {[%clk 0:04:48.7]} 8. Bc4 {[%clk 0:03:58.3]} 8...
Nf6 {[%clk 0:04:44.7]} 9. Qf3 {[%clk 0:03:51.9]} 9... Bg7 {[%clk 0:04:43.5]} 10.
d4 {[%clk 0:03:33.1]} 10... Nxd4 {[%clk 0:04:40.4]} 11. Bxd4 {[%clk 0:03:27.9]}
11... exd4 {[%clk 0:04:40.3]} 12. Nd2 {[%clk 0:03:17.7]} 12... O-O {[%clk
0:04:39.1]} 13. h4 {[%clk 0:03:07.6]} 13... Re8 {[%clk 0:04:37.1]} 14. h5 {[%clk
0:02:45.5]} 14... d5 {[%clk 0:04:36]} 15. h6 {[%clk 0:02:28.3]} 15... Bh8 {[%clk
0:04:30.6]} 16. Ne2 {[%clk 0:02:10.8]} 16... dxc4 {[%clk 0:04:27.3]} 17. Nxc4
{[%clk 0:02:01.7]} 17... Bg4 {[%clk 0:04:24.9]} 18. Qe3 {[%clk 0:01:50.2]} 18...
Rxe4 {[%clk 0:04:20.2]} 19. Qxe4 {[%clk 0:01:09.5]} 19... Nxe4 {[%clk
0:04:16.9]} 20. Rxg4 {[%clk 0:01:09.4]} 20... f5 {[%clk 0:04:15.8]} 21. Rf4
{[%clk 0:01:02.7]} 21... Qc7 {[%clk 0:04:14.6]} 22. g3 {[%clk 0:00:56.6]} 22...
Qxc4 {[%clk 0:04:12.9]} 23. f3 {[%clk 0:00:41.1]} 23... Qxe2+ {[%clk 0:04:10.8]}
24. Kxe2 {[%clk 0:00:28.5]} 24... Nxg3+ {[%clk 0:04:10.7]} 25. Kf2 {[%clk
0:00:23.7]} 25... Nxh1+ {[%clk 0:04:10.6]} 26. Kg2 {[%clk 0:00:22.2]} 26... Re8
{[%clk 0:04:07.2]} 27. Kxh1 {[%clk 0:00:09.7]} 27... Re2 {[%clk 0:04:06.4]} 0-1